[Event "Titled Tuesday Blitz March 14 Late 2023"]
[White "Chylewski, Patryk"]
[Black "Ozen, Bahadir"]
[WhiteFideId "1186191"]
[BlackFideId "6337058"]
[WhiteElo "2163"]
[BlackElo "2503"]
[Result "0-1"]
[Round "02"]
[TimeControl "180+1"]
[Date "2023.03.14"]
[WhiteClock "0:00:15"]
[BlackClock "0:00:08"]

1. e4 {[%clk 0:03:00]}  e5 {[%clk 0:02:59]} 2. Nf3 {[%clk 0:03:00]}  Nc6 {[%clk 0:03:00]} 3. Bb5 {[%clk 0:03:00]}  Nf6 {[%clk 0:03:00]} 4. d3 {[%clk 0:02:57]}  Bc5 {[%clk 0:03:00]} 5. Bxc6 {[%clk 0:02:57]}  dxc6 {[%clk 0:03:00]} 6. Nbd2 {[%clk 0:02:57]}  Nd7 {[%clk 0:02:58]} 7. Nc4 {[%clk 0:02:56]}  f6 {[%clk 0:02:58]} 8. Qe2 {[%clk 0:02:53]}  O-O {[%clk 0:02:56]} 9. Bd2 {[%clk 0:02:48]}  Re8 {[%clk 0:02:43]} 10. O-O-O {[%clk 0:02:45]}  Nf8 {[%clk 0:02:39]} 11. Rdg1 {[%clk 0:02:44]}  Be6 {[%clk 0:02:25]} 12. g4 {[%clk 0:02:34]}  Ng6 {[%clk 0:01:48]} 13. g5 {[%clk 0:02:23]}  f5 {[%clk 0:01:47]} 14. Nfxe5 {[%clk 0:01:53]}  Nxe5 {[%clk 0:01:34]} 15. Nxe5 {[%clk 0:01:54]}  fxe4 {[%clk 0:01:34]} 16. dxe4 {[%clk 0:01:44]}  Bxa2 {[%clk 0:01:32]} 17. Bc3 {[%clk 0:01:43]}  Qe7 {[%clk 0:01:17]} 18. Qh5 {[%clk 0:01:02]}  Bxf2 {[%clk 0:00:20]} 19. g6 {[%clk 0:00:32]}  Be3+ {[%clk 0:00:17]} 20. Kd1 {[%clk 0:00:30]}  h6 {[%clk 0:00:14]} 21. Rf1 {[%clk 0:00:24]}  Rad8+ {[%clk 0:00:14]} 22. Ke1 {[%clk 0:00:24]}  Qd6 {[%clk 0:00:06]} 23. Nf7 {[%clk 0:00:14]}  Bd2+ {[%clk 0:00:05]} 24. Kf2 {[%clk 0:00:06]}  Qf4+ {[%clk 0:00:05]} 25. Kg2 {[%clk 0:00:04]}  Qxe4+ {[%clk 0:00:05]} 26. Qf3 {[%clk 0:00:04]}  Qxf3+ {[%clk 0:00:02]} 27. Rxf3 {[%clk 0:00:04]}  Bd5 {[%clk 0:00:01]} 28. Nxd8 {[%clk 0:00:03]}  Rxd8 {[%clk 0:00:01]} 29. Bxd2 {[%clk 0:00:02]}  Bxf3+ {[%clk 0:00:02]} 30. Kxf3 {[%clk 0:00:03]}  Rxd2 {[%clk 0:00:03]} 31. Re1 {[%clk 0:00:04]}  Kf8 {[%clk 0:00:03]} 32. Rc1 {[%clk 0:00:03]}  Rd6 {[%clk 0:00:03]} 33. Rg1 {[%clk 0:00:02]}  Ke7 {[%clk 0:00:03]} 34. Ke4 {[%clk 0:00:02]}  c5 {[%clk 0:00:03]} 35. Ke5 {[%clk 0:00:03]}  Re6+ {[%clk 0:00:03]} 36. Kd5 {[%clk 0:00:03]}  b6 {[%clk 0:00:03]} 37. h4 {[%clk 0:00:03]}  h5 {[%clk 0:00:03]} 38. Rg5 {[%clk 0:00:03]}  Kd7 {[%clk 0:00:03]} 39. c3 {[%clk 0:00:02]}  c6+ {[%clk 0:00:04]} 40. Kc4 {[%clk 0:00:03]}  Kd6 {[%clk 0:00:05]} 41. b4 {[%clk 0:00:03]}  cxb4 {[%clk 0:00:04]} 42. cxb4 {[%clk 0:00:04]}  Re4+ {[%clk 0:00:04]} 43. Kb3 {[%clk 0:00:04]}  Rxh4 {[%clk 0:00:04]} 44. Rf5 {[%clk 0:00:04]}  Rg4 {[%clk 0:00:04]} 45. Rxh5 {[%clk 0:00:05]}  Rxg6 {[%clk 0:00:04]} 46. Rh8 {[%clk 0:00:06]}  Kc7 {[%clk 0:00:04]} 47. Ra8 {[%clk 0:00:06]}  Kb7 {[%clk 0:00:04]} 48. Rf8 {[%clk 0:00:06]}  Rf6 {[%clk 0:00:03]} 49. Rg8 {[%clk 0:00:06]}  Rf7 {[%clk 0:00:04]} 50. Re8 {[%clk 0:00:06]}  Rd7 {[%clk 0:00:04]} 51. Re3 {[%clk 0:00:07]}  Kc7 {[%clk 0:00:04]} 52. Rg3 {[%clk 0:00:07]}  Kd8 {[%clk 0:00:05]} 53. Ka4 {[%clk 0:00:08]}  Ke8 {[%clk 0:00:05]} 54. b5 {[%clk 0:00:08]}  cxb5+ {[%clk 0:00:05]} 55. Kxb5 {[%clk 0:00:08]}  Rc7 {[%clk 0:00:04]} 56. Ka6 {[%clk 0:00:09]}  Kf7 {[%clk 0:00:04]} 57. Rg5 {[%clk 0:00:08]}  g6 {[%clk 0:00:05]} 58. Rg4 {[%clk 0:00:09]}  Kf6 {[%clk 0:00:05]} 59. Rg1 {[%clk 0:00:09]}  g5 {[%clk 0:00:05]} 60. Rf1+ {[%clk 0:00:09]}  Kg6 {[%clk 0:00:05]} 61. Rg1 {[%clk 0:00:10]}  Kf5 {[%clk 0:00:06]} 62. Rf1+ {[%clk 0:00:10]}  Kg4 {[%clk 0:00:06]} 63. Rg1+ {[%clk 0:00:11]}  Kh5 {[%clk 0:00:07]} 64. Rf1 {[%clk 0:00:12]}  Kg6 {[%clk 0:00:07]} 65. Rg1 {[%clk 0:00:13]}  Rg7 {[%clk 0:00:07]} 66. Rg2 {[%clk 0:00:13]}  Kf5 {[%clk 0:00:07]} 67. Rf2+ {[%clk 0:00:13]}  Ke4 {[%clk 0:00:07]} 68. Rg2 {[%clk 0:00:14]}  Kf3 {[%clk 0:00:08]} 69. Rg1 {[%clk 0:00:15]}  g4 {[%clk 0:00:08]} 0-1


[Site "https://www.chess.com"]

[Event "Titled Tuesday Blitz March 14 Late 2023"]
[White "Crevatin, Leo"]
[Black "Arnold, Ken"]
[WhiteFideId "1726307"]
[BlackFideId "2056836"]
[WhiteElo "2190"]
[BlackElo "2347"]
[Result "1-0"]
[Round "02"]
[TimeControl "180+1"]
[Date "2023.03.14"]
[WhiteClock "0:02:31"]
[BlackClock "0:02:14"]

1. e4 {[%clk 0:03:00]}  c6 {[%clk 0:02:59]} 2. Nc3 {[%clk 0:02:59]}  d5 {[%clk 0:02:59]} 3. Nf3 {[%clk 0:02:59]}  dxe4 {[%clk 0:02:59]} 4. Nxe4 {[%clk 0:03:00]}  Nf6 {[%clk 0:02:59]} 5. Qe2 {[%clk 0:03:00]}  Bf5 {[%clk 0:02:52]} 6. Nxf6+ {[%clk 0:02:58]}  gxf6 {[%clk 0:02:53]} 7. d4 {[%clk 0:02:58]}  Nd7 {[%clk 0:02:52]} 8. g3 {[%clk 0:02:55]}  Qb6 {[%clk 0:02:49]} 9. Bg2 {[%clk 0:02:54]}  e6 {[%clk 0:02:48]} 10. O-O {[%clk 0:02:54]}  Be7 {[%clk 0:02:46]} 11. Be3 {[%clk 0:02:45]}  Qc7 {[%clk 0:02:37]} 12. c4 {[%clk 0:02:40]}  O-O {[%clk 0:02:29]} 13. h4 {[%clk 0:02:36]}  h5 {[%clk 0:02:21]} 14. Nh2 {[%clk 0:02:31]}  Bg4 {[%clk 0:02:14]} 15. Nxg4 {[%clk 0:02:31]} 1-0


[Site "https://www.chess.com"]

[Event "Titled Tuesday Blitz March 14 Late 2023"]
[White "Cuenca Jimenez, Jose Fernando"]
[Black "Bas Mas, Jose Joaquin"]
[WhiteFideId "2255570"]
[BlackFideId "22219064"]
[WhiteElo "2429"]
[BlackElo "2233"]
[Result "1-0"]
[Round "02"]
[TimeControl "180+1"]
[Date "2023.03.14"]
[WhiteClock "0:00:03"]
[BlackClock "0:00:01"]

1. c4 {[%clk 0:02:59]}  d6 {[%clk 0:02:56]} 2. Nc3 {[%clk 0:02:57]}  f5 {[%clk 0:02:55]} 3. d4 {[%clk 0:02:55]}  g6 {[%clk 0:02:52]} 4. h4 {[%clk 0:02:52]}  h6 {[%clk 0:02:43]} 5. h5 {[%clk 0:02:28]}  g5 {[%clk 0:02:40]} 6. e4 {[%clk 0:02:29]}  Nc6 {[%clk 0:02:34]} 7. Nf3 {[%clk 0:02:11]}  Bg7 {[%clk 0:02:30]} 8. exf5 {[%clk 0:02:08]}  Bxf5 {[%clk 0:02:29]} 9. Bd3 {[%clk 0:02:07]}  Qd7 {[%clk 0:02:26]} 10. d5 {[%clk 0:02:06]}  Ne5 {[%clk 0:02:14]} 11. Nxe5 {[%clk 0:02:04]}  Bxe5 {[%clk 0:02:12]} 12. Be3 {[%clk 0:01:58]}  a6 {[%clk 0:02:08]} 13. Qc2 {[%clk 0:01:57]}  Bxd3 {[%clk 0:02:02]} 14. Qxd3 {[%clk 0:01:56]}  O-O-O {[%clk 0:01:55]} 15. O-O-O {[%clk 0:01:54]}  Nf6 {[%clk 0:01:51]} 16. f3 {[%clk 0:01:54]}  Rhg8 {[%clk 0:01:47]} 17. Ne2 {[%clk 0:01:42]}  Kb8 {[%clk 0:01:35]} 18. g3 {[%clk 0:01:34]}  Ne8 {[%clk 0:01:23]} 19. Kb1 {[%clk 0:01:27]}  Ng7 {[%clk 0:01:20]} 20. g4 {[%clk 0:01:15]}  e6 {[%clk 0:01:12]} 21. Bd4 {[%clk 0:00:56]}  Bxd4 {[%clk 0:01:05]} 22. Nxd4 {[%clk 0:00:55]}  e5 {[%clk 0:01:06]} 23. Nb3 {[%clk 0:00:51]}  Rdf8 {[%clk 0:01:03]} 24. c5 {[%clk 0:00:48]}  Rf6 {[%clk 0:01:01]} 25. c6 {[%clk 0:00:45]}  bxc6 {[%clk 0:00:42]} 26. Qxa6 {[%clk 0:00:45]}  Qc8 {[%clk 0:00:42]} 27. Qxc6 {[%clk 0:00:39]}  Qb7 {[%clk 0:00:42]} 28. Qc3 {[%clk 0:00:34]}  Rgf8 {[%clk 0:00:38]} 29. Na5 {[%clk 0:00:27]}  Qb6 {[%clk 0:00:33]} 30. Nc6+ {[%clk 0:00:26]}  Kc8 {[%clk 0:00:33]} 31. Rd3 {[%clk 0:00:25]}  Kd7 {[%clk 0:00:32]} 32. a4 {[%clk 0:00:24]}  Rf4 {[%clk 0:00:28]} 33. a5 {[%clk 0:00:23]}  Qb5 {[%clk 0:00:26]} 34. Rc1 {[%clk 0:00:18]}  Ne8 {[%clk 0:00:24]} 35. Qc2 {[%clk 0:00:14]}  Nf6 {[%clk 0:00:17]} 36. Rb3 {[%clk 0:00:13]}  Qxd5 {[%clk 0:00:16]} 37. Nb8+ {[%clk 0:00:13]}  Ke6 {[%clk 0:00:15]} 38. a6 {[%clk 0:00:10]}  Nd7 {[%clk 0:00:11]} 39. Nxd7 {[%clk 0:00:09]}  Kxd7 {[%clk 0:00:11]} 40. Qxc7+ {[%clk 0:00:09]}  Ke6 {[%clk 0:00:12]} 41. Rb6 {[%clk 0:00:08]}  Ra4 {[%clk 0:00:09]} 42. Qc8+ {[%clk 0:00:06]}  Kf6 {[%clk 0:00:06]} 43. Qxf8+ {[%clk 0:00:02]}  Ke6 {[%clk 0:00:01]} 44. Qg8+ {[%clk 0:00:03]}  Kf6 {[%clk 0:00:01]} 45. Qxd5 {[%clk 0:00:03]} 1-0


[Site "https://www.chess.com"]

[Event "Titled Tuesday Blitz March 14 Late 2023"]
[White "Deac, Bogdan-Daniel"]
[Black "Zheng, Richard"]
[WhiteFideId "1226380"]
[BlackFideId "2624893"]
[WhiteElo "2649"]
[BlackElo "2635"]
[Result "1-0"]
[Round "02"]
[TimeControl "180+1"]
[Date "2023.03.14"]
[WhiteClock "0:01:22"]
[BlackClock "0:01:11"]

1. b3 {[%clk 0:03:00]}  Nf6 {[%clk 0:02:57]} 2. Bb2 {[%clk 0:03:00]}  g6 {[%clk 0:02:58]} 3. Nf3 {[%clk 0:03:01]}  Bg7 {[%clk 0:02:58]} 4. g3 {[%clk 0:03:01]}  O-O {[%clk 0:02:59]} 5. Bg2 {[%clk 0:03:02]}  c6 {[%clk 0:02:59]} 6. O-O {[%clk 0:03:01]}  d5 {[%clk 0:03:00]} 7. c4 {[%clk 0:03:01]}  e6 {[%clk 0:02:57]} 8. d3 {[%clk 0:02:58]}  Nbd7 {[%clk 0:02:57]} 9. Nbd2 {[%clk 0:02:58]}  Qc7 {[%clk 0:02:54]} 10. Rc1 {[%clk 0:02:56]}  a5 {[%clk 0:02:51]} 11. Qc2 {[%clk 0:02:55]}  a4 {[%clk 0:02:45]} 12. b4 {[%clk 0:02:55]}  b6 {[%clk 0:02:35]} 13. cxd5 {[%clk 0:02:50]}  Nxd5 {[%clk 0:02:34]} 14. Bxg7 {[%clk 0:02:50]}  Kxg7 {[%clk 0:02:35]} 15. e4 {[%clk 0:02:46]}  Ne7 {[%clk 0:02:32]} 16. Qb2+ {[%clk 0:02:41]}  Kg8 {[%clk 0:02:31]} 17. Rc3 {[%clk 0:02:38]}  Bb7 {[%clk 0:02:27]} 18. d4 {[%clk 0:02:35]}  b5 {[%clk 0:02:25]} 19. Rfc1 {[%clk 0:02:29]}  Nb6 {[%clk 0:02:17]} 20. a3 {[%clk 0:02:21]}  Rad8 {[%clk 0:02:02]} 21. e5 {[%clk 0:02:20]}  Ned5 {[%clk 0:02:01]} 22. Rc5 {[%clk 0:02:12]}  Qe7 {[%clk 0:01:50]} 23. h4 {[%clk 0:02:10]}  f5 {[%clk 0:01:49]} 24. exf6 {[%clk 0:02:07]}  Qxf6 {[%clk 0:01:46]} 25. Ne4 {[%clk 0:02:03]}  Qf5 {[%clk 0:01:42]} 26. Nfg5 {[%clk 0:01:50]}  Nc4 {[%clk 0:01:35]} 27. R1xc4 {[%clk 0:01:31]}  bxc4 {[%clk 0:01:36]} 28. Bh3 {[%clk 0:01:31]}  c3 {[%clk 0:01:18]} 29. Qc2 {[%clk 0:01:24]}  Ne3 {[%clk 0:01:11]} 30. fxe3 {[%clk 0:01:22]} 1-0


[Site "https://www.chess.com"]

[Event "Titled Tuesday Blitz March 14 Late 2023"]
[White "Deviprasath, Sharvesh"]
[Black "Keymer, Vincent"]
[WhiteFideId "30938228"]
[BlackFideId "12940690"]
[WhiteElo "2168"]
[BlackElo "2651"]
[Result "1-0"]
[Round "02"]
[TimeControl "180+1"]
[Date "2023.03.14"]
[WhiteClock "0:00:15"]
[BlackClock "0:00:09"]

1. Nf3 {[%clk 0:03:00]}  c6 {[%clk 0:03:00]} 2. c4 {[%clk 0:02:57]}  d5 {[%clk 0:03:01]} 3. e3 {[%clk 0:02:57]}  Nf6 {[%clk 0:03:01]} 4. Nc3 {[%clk 0:02:54]}  e6 {[%clk 0:03:01]} 5. d4 {[%clk 0:02:50]}  Nbd7 {[%clk 0:03:01]} 6. Qc2 {[%clk 0:02:50]}  Bd6 {[%clk 0:03:00]} 7. Bd2 {[%clk 0:02:49]}  b6 {[%clk 0:02:52]} 8. O-O-O {[%clk 0:02:42]}  Bb7 {[%clk 0:02:47]} 9. e4 {[%clk 0:02:14]}  dxe4 {[%clk 0:02:38]} 10. Nxe4 {[%clk 0:02:15]}  Be7 {[%clk 0:02:36]} 11. Bd3 {[%clk 0:02:13]}  Qc7 {[%clk 0:02:30]} 12. Kb1 {[%clk 0:01:53]}  c5 {[%clk 0:02:23]} 13. dxc5 {[%clk 0:01:35]}  Nxc5 {[%clk 0:02:15]} 14. Nxc5 {[%clk 0:01:34]}  Qxc5 {[%clk 0:02:13]} 15. a3 {[%clk 0:01:20]}  Qc7 {[%clk 0:02:07]} 16. Rhe1 {[%clk 0:01:11]}  O-O-O {[%clk 0:01:42]} 17. Bc3 {[%clk 0:01:03]}  Kb8 {[%clk 0:01:37]} 18. Be5 {[%clk 0:00:51]}  Bd6 {[%clk 0:01:36]} 19. Bxf6 {[%clk 0:00:50]}  gxf6 {[%clk 0:01:35]} 20. Be4 {[%clk 0:00:50]}  Ba6 {[%clk 0:01:31]} 21. Nd4 {[%clk 0:00:45]}  Bb7 {[%clk 0:00:45]} 22. Nb5 {[%clk 0:00:38]}  Qe7 {[%clk 0:00:18]} 23. Bxb7 {[%clk 0:00:35]}  Kxb7 {[%clk 0:00:19]} 24. Qe4+ {[%clk 0:00:35]}  Ka6 {[%clk 0:00:08]} 25. Qc6 {[%clk 0:00:32]}  Bb8 {[%clk 0:00:03]} 26. Nd4 {[%clk 0:00:15]}  Qd7 {[%clk 0:00:02]} 27. Qb5+ {[%clk 0:00:12]}  Qxb5 {[%clk 0:00:02]} 28. cxb5+ {[%clk 0:00:13]}  Kb7 {[%clk 0:00:03]} 29. Nc6 {[%clk 0:00:14]}  Rxd1+ {[%clk 0:00:02]} 30. Rxd1 {[%clk 0:00:15]}  Kc7 {[%clk 0:00:03]} 31. Rc1 {[%clk 0:00:14]}  Kd7 {[%clk 0:00:03]} 32. Rd1+ {[%clk 0:00:14]}  Kc8 {[%clk 0:00:03]} 33. Ne7+ {[%clk 0:00:13]}  Kc7 {[%clk 0:00:03]} 34. Nc6 {[%clk 0:00:13]}  Re8 {[%clk 0:00:02]} 35. Rc1 {[%clk 0:00:12]}  Kb7 {[%clk 0:00:02]} 36. Rd1 {[%clk 0:00:13]}  Kc8 {[%clk 0:00:02]} 37. Rc1 {[%clk 0:00:13]}  Bc7 {[%clk 0:00:03]} 38. Nxa7+ {[%clk 0:00:12]}  Kb7 {[%clk 0:00:03]} 39. Nc6 {[%clk 0:00:13]}  e5 {[%clk 0:00:03]} 40. f3 {[%clk 0:00:12]}  f5 {[%clk 0:00:03]} 41. Re1 {[%clk 0:00:12]}  e4 {[%clk 0:00:04]} 42. fxe4 {[%clk 0:00:13]}  fxe4 {[%clk 0:00:04]} 43. Kc2 {[%clk 0:00:13]}  f5 {[%clk 0:00:05]} 44. Nd4 {[%clk 0:00:13]}  Rf8 {[%clk 0:00:03]} 45. g3 {[%clk 0:00:12]}  h5 {[%clk 0:00:03]} 46. Rf1 {[%clk 0:00:12]}  f4 {[%clk 0:00:02]} 47. gxf4 {[%clk 0:00:13]}  Rxf4 {[%clk 0:00:02]} 48. Rxf4 {[%clk 0:00:13]}  Bxf4 {[%clk 0:00:03]} 49. h3 {[%clk 0:00:13]}  Be5 {[%clk 0:00:03]} 50. Ne2 {[%clk 0:00:12]}  Kc7 {[%clk 0:00:03]} 51. Nc3 {[%clk 0:00:12]}  Kd6 {[%clk 0:00:01]} 52. Nxe4+ {[%clk 0:00:13]}  Kd5 {[%clk 0:00:02]} 53. Nc3+ {[%clk 0:00:11]}  Kc4 {[%clk 0:00:03]} 54. a4 {[%clk 0:00:10]}  Kb4 {[%clk 0:00:02]} 55. Kd3 {[%clk 0:00:10]}  Bg7 {[%clk 0:00:01]} 56. Ke4 {[%clk 0:00:10]}  Bxc3 {[%clk 0:00:01]} 57. bxc3+ {[%clk 0:00:11]}  Kxc3 {[%clk 0:00:02]} 58. a5 {[%clk 0:00:11]}  bxa5 {[%clk 0:00:03]} 59. b6 {[%clk 0:00:12]}  a4 {[%clk 0:00:04]} 60. b7 {[%clk 0:00:12]}  a3 {[%clk 0:00:05]} 61. b8=Q {[%clk 0:00:13]}  a2 {[%clk 0:00:06]} 62. Qc7+ {[%clk 0:00:13]}  Kb2 {[%clk 0:00:07]} 63. Qe5+ {[%clk 0:00:13]}  Kb3 {[%clk 0:00:07]} 64. Qd5+ {[%clk 0:00:13]}  Kb2 {[%clk 0:00:07]} 65. Qxh5 {[%clk 0:00:13]}  Kb1 {[%clk 0:00:08]} 66. Qe5 {[%clk 0:00:14]}  a1=Q {[%clk 0:00:09]} 67. Qxa1+ {[%clk 0:00:14]}  Kxa1 {[%clk 0:00:09]} 68. h4 {[%clk 0:00:15]} 1-0


[Site "https://www.chess.com"]

[Event "Titled Tuesday Blitz March 14 Late 2023"]
[White "Diaz Perez, Michel Alejandro"]
[Black "Svane, Rasmus"]
[WhiteFideId "3517179"]
[BlackFideId "4657101"]
[WhiteElo "2333"]
[BlackElo "2597"]
[Result "1/2-1/2"]
[Round "02"]
[TimeControl "180+1"]
[Date "2023.03.14"]
[WhiteClock "0:00:51"]
[BlackClock "0:00:08"]

1. d4 {[%clk 0:03:00]}  Nf6 {[%clk 0:02:59]} 2. c4 {[%clk 0:03:00]}  e6 {[%clk 0:03:00]} 3. Nf3 {[%clk 0:03:00]}  d5 {[%clk 0:03:00]} 4. Nc3 {[%clk 0:03:00]}  a6 {[%clk 0:03:00]} 5. cxd5 {[%clk 0:02:52]}  exd5 {[%clk 0:03:01]} 6. Bg5 {[%clk 0:02:52]}  Be6 {[%clk 0:03:02]} 7. e3 {[%clk 0:02:53]}  Nbd7 {[%clk 0:03:02]} 8. Bd3 {[%clk 0:02:53]}  Bd6 {[%clk 0:03:02]} 9. Qc2 {[%clk 0:02:51]}  c6 {[%clk 0:03:02]} 10. Rb1 {[%clk 0:02:48]}  Qc7 {[%clk 0:03:02]} 11. h3 {[%clk 0:02:47]}  h6 {[%clk 0:03:02]} 12. Bxf6 {[%clk 0:02:45]}  Nxf6 {[%clk 0:03:02]} 13. b4 {[%clk 0:02:43]}  O-O {[%clk 0:03:03]} 14. O-O {[%clk 0:02:42]}  Rfe8 {[%clk 0:03:03]} 15. a4 {[%clk 0:02:41]}  Qe7 {[%clk 0:03:01]} 16. b5 {[%clk 0:02:38]}  cxb5 {[%clk 0:03:01]} 17. axb5 {[%clk 0:02:38]}  a5 {[%clk 0:03:02]} 18. Rfc1 {[%clk 0:02:32]}  Ba3 {[%clk 0:03:01]} 19. Rd1 {[%clk 0:02:30]}  Bb4 {[%clk 0:02:55]} 20. Qb3 {[%clk 0:02:28]}  Ne4 {[%clk 0:02:43]} 21. Nxd5 {[%clk 0:02:16]}  Bxd5 {[%clk 0:02:44]} 22. Qxd5 {[%clk 0:02:16]}  Nc3 {[%clk 0:02:45]} 23. Qf5 {[%clk 0:02:16]}  g6 {[%clk 0:02:45]} 24. Qf4 {[%clk 0:02:14]}  Kg7 {[%clk 0:02:39]} 25. h4 {[%clk 0:01:58]}  Bd6 {[%clk 0:02:36]} 26. Qg4 {[%clk 0:01:54]}  h5 {[%clk 0:02:37]} 27. Qh3 {[%clk 0:01:54]}  a4 {[%clk 0:02:37]} 28. e4 {[%clk 0:01:49]}  Nxb1 {[%clk 0:02:34]} 29. Rxb1 {[%clk 0:01:47]}  a3 {[%clk 0:02:34]} 30. Ra1 {[%clk 0:01:41]}  Bb4 {[%clk 0:02:31]} 31. Ra2 {[%clk 0:01:40]}  Qc7 {[%clk 0:02:06]} 32. g4 {[%clk 0:01:31]}  Qc3 {[%clk 0:02:00]} 33. Bf1 {[%clk 0:01:15]}  Rxe4 {[%clk 0:01:53]} 34. gxh5 {[%clk 0:01:14]}  gxh5 {[%clk 0:01:53]} 35. Qf5 {[%clk 0:01:07]}  Rg4+ {[%clk 0:01:54]} 36. Kh1 {[%clk 0:01:07]}  Re8 {[%clk 0:01:48]} 37. Ng5 {[%clk 0:00:59]}  Rxh4+ {[%clk 0:01:40]} 38. Kg1 {[%clk 0:00:52]}  Rg4+ {[%clk 0:01:37]} 39. Kh1 {[%clk 0:00:53]}  Rh4+ {[%clk 0:00:38]} 40. Kg1 {[%clk 0:00:51]}  Rg4+ {[%clk 0:00:26]} 41. Kh1 {[%clk 0:00:51]}  Rh4+ {[%clk 0:00:08]} 1/2-1/2


[Site "https://www.chess.com"]

[Event "Titled Tuesday Blitz March 14 Late 2023"]
[White "Dimitrov, Atanas"]
[Black "Naroditsky, Daniel"]
[WhiteFideId "2901315"]
[BlackFideId "2026961"]
[WhiteElo "2690"]
[BlackElo "2633"]
[Result "0-1"]
[Round "02"]
[TimeControl "180+1"]
[Date "2023.03.14"]
[WhiteClock "0:00:15"]
[BlackClock "0:00:39"]

1. e4 {[%clk 0:03:00]}  c5 {[%clk 0:03:00]} 2. Nf3 {[%clk 0:02:59]}  d6 {[%clk 0:03:00]} 3. d4 {[%clk 0:03:00]}  cxd4 {[%clk 0:03:01]} 4. Nxd4 {[%clk 0:03:01]}  Nf6 {[%clk 0:03:02]} 5. Nc3 {[%clk 0:03:01]}  a6 {[%clk 0:03:03]} 6. g3 {[%clk 0:03:01]}  e5 {[%clk 0:03:01]} 7. Nde2 {[%clk 0:03:00]}  Be7 {[%clk 0:02:56]} 8. Bg2 {[%clk 0:03:01]}  O-O {[%clk 0:02:56]} 9. h3 {[%clk 0:03:00]}  b5 {[%clk 0:02:55]} 10. Be3 {[%clk 0:02:58]}  Bb7 {[%clk 0:02:53]} 11. O-O {[%clk 0:02:53]}  Nbd7 {[%clk 0:02:52]} 12. g4 {[%clk 0:02:43]}  b4 {[%clk 0:02:46]} 13. Nd5 {[%clk 0:02:42]}  Nxd5 {[%clk 0:02:46]} 14. exd5 {[%clk 0:02:43]}  Bg5 {[%clk 0:02:39]} 15. Qd2 {[%clk 0:02:30]}  Bxe3 {[%clk 0:02:38]} 16. Qxe3 {[%clk 0:02:31]}  a5 {[%clk 0:02:34]} 17. Ng3 {[%clk 0:02:27]}  Rc8 {[%clk 0:02:32]} 18. Rac1 {[%clk 0:02:23]}  Qb6 {[%clk 0:02:28]} 19. Qd2 {[%clk 0:02:18]}  Rfe8 {[%clk 0:02:23]} 20. Rfe1 {[%clk 0:02:12]}  Rc4 {[%clk 0:02:17]} 21. c3 {[%clk 0:01:50]}  bxc3 {[%clk 0:02:12]} 22. Rxc3 {[%clk 0:01:48]}  Rd4 {[%clk 0:02:13]} 23. Rd3 {[%clk 0:01:48]}  Rxd3 {[%clk 0:02:11]} 24. Qxd3 {[%clk 0:01:49]}  Qxb2 {[%clk 0:01:51]} 25. Rb1 {[%clk 0:01:40]}  Ba6 {[%clk 0:01:51]} 26. Qf5 {[%clk 0:01:40]}  Qxa2 {[%clk 0:01:50]} 27. Rc1 {[%clk 0:00:58]}  Nc5 {[%clk 0:01:39]} 28. h4 {[%clk 0:00:53]}  Bd3 {[%clk 0:01:36]} 29. Qg5 {[%clk 0:00:54]}  h6 {[%clk 0:01:34]} 30. Qe3 {[%clk 0:00:54]}  Bh7 {[%clk 0:01:21]} 31. g5 {[%clk 0:00:54]}  hxg5 {[%clk 0:01:22]} 32. Qxg5 {[%clk 0:00:54]}  f6 {[%clk 0:01:12]} 33. Qg4 {[%clk 0:00:53]}  Qd2 {[%clk 0:01:11]} 34. Ra1 {[%clk 0:00:51]}  f5 {[%clk 0:01:06]} 35. Qh3 {[%clk 0:00:43]}  Rf8 {[%clk 0:01:02]} 36. Nf1 {[%clk 0:00:43]}  Qb4 {[%clk 0:00:58]} 37. h5 {[%clk 0:00:41]}  a4 {[%clk 0:00:55]} 38. h6 {[%clk 0:00:41]}  Qg4 {[%clk 0:00:55]} 39. hxg7 {[%clk 0:00:36]}  Kxg7 {[%clk 0:00:53]} 40. Qc3 {[%clk 0:00:31]}  f4 {[%clk 0:00:51]} 41. Nh2 {[%clk 0:00:31]}  Qh5 {[%clk 0:00:51]} 42. Qa5 {[%clk 0:00:26]}  Rf7 {[%clk 0:00:46]} 43. Qb6 {[%clk 0:00:26]}  Qg6 {[%clk 0:00:43]} 44. Kh1 {[%clk 0:00:25]}  Qh6 {[%clk 0:00:39]} 45. Bf3 {[%clk 0:00:22]}  Kh8 {[%clk 0:00:39]} 46. Qd8+ {[%clk 0:00:16]}  Qf8 {[%clk 0:00:39]} 47. Qh4 {[%clk 0:00:15]}  Qe7 {[%clk 0:00:39]} 48. Bh5 {[%clk 0:00:15]}  Qxh4 {[%clk 0:00:39]} 0-1


[Site "https://www.chess.com"]

[Event "Titled Tuesday Blitz March 14 Late 2023"]
[White "Duda, Jan-Krzysztof"]
[Black "Piesik, Piotr"]
[WhiteFideId "1170546"]
[BlackFideId "1136194"]
[WhiteElo "2790"]
[BlackElo "2311"]
[Result "1-0"]
[Round "02"]
[TimeControl "180+1"]
[Date "2023.03.14"]
[WhiteClock "0:00:10"]
[BlackClock "0:00:08"]

1. e4 {[%clk 0:03:00]}  e6 {[%clk 0:03:00]} 2. d4 {[%clk 0:02:59]}  d5 {[%clk 0:03:00]} 3. exd5 {[%clk 0:03:00]}  exd5 {[%clk 0:03:00]} 4. Nf3 {[%clk 0:03:01]}  Nf6 {[%clk 0:02:58]} 5. Bd3 {[%clk 0:03:00]}  Bd6 {[%clk 0:02:57]} 6. O-O {[%clk 0:02:56]}  O-O {[%clk 0:02:57]} 7. Bg5 {[%clk 0:02:56]}  Bg4 {[%clk 0:02:55]} 8. Nbd2 {[%clk 0:02:55]}  Nbd7 {[%clk 0:02:52]} 9. c3 {[%clk 0:02:55]}  c6 {[%clk 0:02:52]} 10. Qc2 {[%clk 0:02:53]}  Qc7 {[%clk 0:02:52]} 11. Bh4 {[%clk 0:02:20]}  Rfe8 {[%clk 0:02:47]} 12. Bg3 {[%clk 0:02:19]}  Re7 {[%clk 0:02:35]} 13. Nh4 {[%clk 0:02:12]}  g6 {[%clk 0:02:24]} 14. Bxd6 {[%clk 0:02:09]}  Qxd6 {[%clk 0:02:24]} 15. h3 {[%clk 0:02:10]}  Be2 {[%clk 0:02:21]} 16. Rfe1 {[%clk 0:01:52]}  Bxd3 {[%clk 0:02:20]} 17. Qxd3 {[%clk 0:01:53]}  Rae8 {[%clk 0:02:19]} 18. Nhf3 {[%clk 0:01:49]}  Nh5 {[%clk 0:02:13]} 19. Qf1 {[%clk 0:01:32]}  Ng7 {[%clk 0:02:01]} 20. a4 {[%clk 0:01:29]}  a5 {[%clk 0:01:58]} 21. Nb3 {[%clk 0:01:24]}  b6 {[%clk 0:01:58]} 22. Rxe7 {[%clk 0:01:22]}  Rxe7 {[%clk 0:01:57]} 23. Qa6 {[%clk 0:01:19]}  Qc7 {[%clk 0:01:55]} 24. Rc1 {[%clk 0:01:07]}  Nb8 {[%clk 0:01:33]} 25. Qd3 {[%clk 0:01:06]}  Ne6 {[%clk 0:01:30]} 26. g3 {[%clk 0:01:03]}  Qb7 {[%clk 0:01:23]} 27. h4 {[%clk 0:00:53]}  Qa6 {[%clk 0:01:18]} 28. Qd2 {[%clk 0:00:47]}  Qc4 {[%clk 0:01:13]} 29. Na1 {[%clk 0:00:46]}  Qxa4 {[%clk 0:01:12]} 30. h5 {[%clk 0:00:45]}  Nd7 {[%clk 0:01:08]} 31. Nc2 {[%clk 0:00:44]}  Qb5 {[%clk 0:01:06]} 32. Ne3 {[%clk 0:00:42]}  Nef8 {[%clk 0:00:56]} 33. Nf5 {[%clk 0:00:21]}  Re2 {[%clk 0:00:46]} 34. Nh6+ {[%clk 0:00:21]}  Kg7 {[%clk 0:00:45]} 35. Qf4 {[%clk 0:00:22]}  Nf6 {[%clk 0:00:27]} 36. Nf5+ {[%clk 0:00:17]}  Kg8 {[%clk 0:00:27]} 37. Nd6 {[%clk 0:00:12]}  Qxb2 {[%clk 0:00:28]} 38. Qxf6 {[%clk 0:00:12]}  Qxc1+ {[%clk 0:00:28]} 39. Kg2 {[%clk 0:00:13]}  Ne6 {[%clk 0:00:09]} 40. Qxf7+ {[%clk 0:00:10]}  Kh8 {[%clk 0:00:09]} 41. hxg6 {[%clk 0:00:09]}  hxg6 {[%clk 0:00:09]} 42. Qxg6 {[%clk 0:00:10]}  Nf4+ {[%clk 0:00:08]} 43. gxf4 {[%clk 0:00:10]} 1-0


[Site "https://www.chess.com"]